bitfinex-derivatives/quotes_ETHF0:USTF0_20250730
["timestamp","ask_amount","ask_price","bid_price","bid_amount"]
[1753906487235,57.59546,3784.7,3784.6,5.9978]
[1753906487735,18.988,3784.7,3784.6,2.4598]
[1753906487940,18.988,3784.7,3784.6,5.9978]
[1753906488142,3.2078,3785.3,3784.6,5.9978]
[1753906488333,3.2078,3785.3,3784.3,3.29931499]
[1753906488334,0.52846,3784.8,3784.7,5.1149]
[1753906488533,19.51546,3784.8,3784.7,5.9978]
[1753906488735,19.51446,3784.8,3784.7,5.9978]
[1753906490339,3.2078,3784.9,3784.7,8.01501499]
[1753906490636,0.52841,3785.1,3784.8,2.4598]
[1753906490842,18.982,3785.0,3784.9,5.9978]
[1753906491438,0.52842,3785.1,3785.0,4.1012]
[1753906491644,19.50842,3785.1,3785.0,5.9978]
[1753906491937,0.52842,3785.1,3785.0,4.7157]
[1753906492142,0.38,3785.7,3785.2,0.8528]
[1753906492333,0.52838,3785.3,3785.2,5.9978]
[1753906493039,0.52843,3784.9,3784.8,3.8629]
[1753906493239,22.71323,3784.9,3784.8,3.8629]
[1753906493540,22.71323,3784.9,3784.7,3.29931499]
[1753906495042,57.038,3784.8,3784.7,8.01501499]
[1753906495241,38.065,3784.8,3784.7,9.29711499]
[1753906495447,57.037,3784.8,3784.7,9.29711499]
[1753906496244,57.037,3784.8,3784.7,3.29931499]
[1753906497243,57.037,3784.8,3784.7,4.15211499]
[1753906498843,57.037,3784.8,3784.7,3.29931499]
[1753906499748,65.4165055,3784.8,3784.7,2.51780499]
[1753906500138,46.4445055,3784.8,3784.7,2.51780499]
[1753906500343,38.065,3784.8,3784.7,3.43660499]
[1753906500553,38.065,3784.8,3784.7,8.69960499]
[1753906500753,3.2078,3784.9,3784.8,6.1818]
[1753906500949,22.69823,3784.9,3784.8,6.1818]
[1753906502247,22.69823,3784.9,3784.7,2.51780499]
[1753906502442,0.52843,3784.9,3784.8,0.9188]
[1753906502646,0.52843,3784.9,3784.8,2.8886]
[1753906502847,22.69523,3784.9,3784.8,4.8076]
[1753906503244,23.42801223,3784.9,3784.7,2.51780499]
[1753906503458,22.69523,3784.9,3784.7,2.51780499]
[1753906504457,23.20243542,3784.8,3784.7,1.98881499]
[1753906504752,19.68929373,3784.8,3784.7,3.38561499]
[1753906504954,19.68929373,3784.8,3784.7,6.67881499]
[1753906505649,0.73329373,3784.8,3784.7,6.67881499]
[1753906505849,19.68729373,3784.8,3784.7,6.67881499]
[1753906506250,18.954,3784.8,3784.7,6.67881499]
[1753906506966,3.73623,3784.9,3784.8,4.69]
[1753906507261,3.2078,3785.5,3784.9,4.69]
[1753906507459,19.48037,3785.4,3785.3,4.69]
[1753906507660,24.17027,3785.4,3785.3,5.6267]
[1753906507966,24.90396715,3785.4,3785.3,5.6267]
[1753906508160,24.90396715,3785.4,3785.3,2.4189]
[1753906508366,24.90396715,3785.4,3785.3,4.69]
[1753906509161,0.52842,3785.0,3784.9,4.582]
[1753906509354,24.16732,3785.0,3784.9,3.2078]
[1753906509560,24.90114762,3785.0,3784.9,3.2078]
[1753906509756,5.95214762,3785.0,3784.9,4.8029]
[1753906509960,18.947,3785.0,3784.9,5.6998]
[1753906510464,18.947,3785.0,3784.9,7.68861499]
[1753906510664,19.8315,3785.0,3784.9,10.45961499]
[1753906510862,23.6369,3785.0,3784.9,10.45961499]
[1753906511068,19.8315,3785.0,3784.9,10.45961499]
[1753906511566,18.947,3785.0,3784.9,10.45961499]
[1753906511766,1.56092,3785.1,3785.0,1.5951]
[1753906511967,22.85872,3785.1,3785.0,5.263]
[1753906512365,22.85872,3785.1,3784.9,5.19661499]
[1753906512568,4.6899,3785.0,3784.9,1.98881499]
[1753906513574,18.941,3785.0,3784.9,5.87761499]
[1753906513766,18.941,3785.0,3784.9,7.25181499]
[1753906514064,2.1871,3785.0,3784.9,7.25181499]
[1753906514370,0.8845,3785.0,3784.9,10.45961499]
[1753906514565,0.52842,3785.1,3785.0,5.263]
[1753906515171,19.46742,3785.1,3785.0,5.263]
[1753906515468,19.46742,3785.1,3785.0,7.25181499]
[1753906515666,21.65452,3785.1,3785.0,7.25181499]
[1753906516070,24.89169739,3785.1,3785.0,1.98881499]
[1753906516265,22.68702,3785.1,3785.0,6.35491499]
[1753906516467,23.42162915,3785.1,3785.0,7.25181499]
[1753906516870,24.15732,3785.1,3785.0,7.25181499]
[1753906517067,1.26302816,3785.1,3785.0,7.25181499]
[1753906517268,0.52839,3785.3,3785.2,2.492]
[1753906517472,19.46439,3785.3,3785.2,8.4708]
[1753906517668,20.19901223,3785.3,3785.2,8.4708]
[1753906517863,0.38,3785.7,3785.3,2.771]
[1753906518073,0.90832,3785.7,3785.6,5.9788]
[1753906518375,20.57787408,3785.7,3785.6,5.9788]
[1753906518577,20.04955408,3785.7,3785.6,5.9788]
[1753906518765,20.04855408,3785.7,3785.6,5.9788]
[1753906519971,19.314,3785.7,3785.6,5.9788]
[1753906520382,19.314,3785.7,3785.6,7.96761499]
[1753906521069,19.309,3785.7,3785.6,7.96761499]
[1753906522677,19.309,3785.7,3785.6,8.88641499]
[1753906523379,0.38,3785.7,3785.6,8.88641499]
[1753906523675,0.38,3785.7,3785.6,11.37841499]
[1753906523676,19.307,3785.7,3785.6,11.37841499]
[1753906525370,19.304,3785.7,3785.6,11.37841499]
[1753906525574,19.44932,3785.8,3785.7,4.8076]
[1753906525768,19.44932,3785.8,3785.7,6.1818]
[1753906526165,0.52831,3785.9,3785.8,5.2849]
[1753906526370,0.52831,3785.9,3785.8,6.1818]
[1753906527170,2.7153,3786.6,3786.5,0.8969]
[1753906527374,2.62293,3787.1,3786.5,2.492]
[1753906527573,2.62293,3787.1,3785.8,1.32075]
[1753906527574,5.78613,3787.1,3787.0,3.9107]
[1753906527770,25.43657333,3787.1,3787.0,3.9107]
[1753906527967,25.43657333,3787.1,3787.0,2.5139]
[1753906528278,25.43657333,3787.1,3787.0,3.9107]
[1753906528476,25.43657333,3787.1,3787.0,0.9188]
[1753906528681,24.70413,3787.1,3787.0,0.9188]
[1753906528879,25.43414151,3787.1,3787.0,0.9188]
[1753906529081,6.16177,3786.8,3786.7,3.2078]
[1753906529375,5.78463,3786.4,3786.3,7.0783]
[1753906529583,24.69863,3786.4,3786.3,7.0783]
[1753906529775,24.1704,3786.4,3786.3,8.8013]
[1753906530171,22.6973,3786.4,3786.3,4.9308]
[1753906530376,22.6973,3786.4,3786.3,6.07721499]
[1753906530580,22.6973,3786.4,3786.3,6.66191499]
[1753906531273,21.726,3786.4,3786.3,6.07721499]
[1753906531483,3.34037,3785.4,3785.3,1.4653]
[1753906531781,22.25037,3785.4,3785.3,0.8806]
[1753906531978,21.12237,3785.4,3785.3,0.8806]
[1753906532178,20.74517,3785.4,3785.3,0.8806]
[1753906532481,1.83517,3785.4,3785.3,0.8806]
[1753906532678,18.908,3785.4,3785.3,2.2628]
[1753906533077,20.2148,3785.4,3785.3,2.2628]
[1753906534279,20.2148,3785.4,3785.3,0.8806]
[1753906534484,2.21238,3785.3,3785.2,3.2078]
[1753906535677,2.21238,3785.3,3785.2,4.0884]
[1753906535881,1.83518,3785.3,3785.2,5.49208351]
[1753906536084,2.21238,3785.3,3785.2,4.61148351]
[1753906536578,2.21238,3785.3,3785.2,1.40368351]
[1753906536785,0.52845,3784.8,3784.7,3.2078]
[1753906536975,20.73925,3784.8,3784.7,4.0884]
[1753906537176,20.2108,3784.8,3784.7,4.0884]
[1753906537487,18.903,3784.8,3784.7,5.4706]
[1753906537678,0.52845,3784.9,3784.7,5.4706]
[1753906537879,1.83525,3784.9,3784.8,0.8806]
[1753906538085,1.3068,3784.8,3784.7,3.2078]
[1753906538381,1.684,3784.8,3784.7,3.2078]
[1753906538790,4.1605,3784.8,3784.7,3.2078]
[1753906538981,2.4765,3784.3,3784.2,4.6731]
[1753906539182,23.58902,3784.3,3784.2,3.2078]
[1753906539686,0.52847,3784.7,3784.2,7.0312]
[1753906539886,18.9,3784.6,3784.5,2.4412]
[1753906540089,19.8713,3784.6,3784.5,3.8234]
[1753906540381,21.1781,3784.6,3784.5,4.704]
[1753906540986,1.3068,3785.1,3784.5,2.4412]
[1753906541286,1.83519,3785.3,3785.2,2.4412]
[1753906541485,1.3068,3785.3,3785.2,4.704]
[1753906541689,18.898,3785.3,3785.2,4.704]
[1753906541989,1.8824,3785.7,3785.6,4.704]
[1753906542185,19.62832653,3785.7,3785.6,2.4412]
[1753906542380,19.62832653,3785.7,3785.6,5.649]
[1753906542686,23.41162653,3785.7,3785.6,3.2078]
[1753906542882,3.7833,3785.4,3785.3,1.4653]
[1753906543087,22.6803,3785.4,3785.3,1.4653]
[1753906543384,22.6803,3785.4,3785.3,4.704]
[1753906543891,3.7833,3785.0,3784.9,4.704]
[1753906544085,22.6793,3785.0,3784.9,7.9118]
[1753906544385,4.31171,3785.2,3785.1,3.3218]
[1753906544580,4.31171,3785.2,3785.1,1.4653]
[1753906544782,23.20671,3785.2,3785.1,1.4653]
[1753906545085,21.30581,3785.2,3785.1,4.704]
[1753906545293,23.20671,3785.2,3785.1,4.704]
[1753906545691,23.20571,3785.2,3785.1,4.704]
[1753906545886,4.31171,3785.2,3785.1,4.704]
[1753906546084,23.20471,3785.2,3785.1,4.704]
[1753906546284,4.31178,3784.6,3784.5,3.7925]
[1753906546491,23.20378,3784.6,3784.5,3.2078]
[1753906546892,21.10538,3784.6,3784.5,3.2078]
[1753906547086,20.72728,3784.6,3784.5,4.0884]
[1753906547982,19.41948,3784.6,3784.5,4.0884]
[1753906548188,19.41948,3784.6,3784.5,5.4706]
[1753906548591,20.72628,3784.6,3784.5,5.4706]
[1753906549382,19.41948,3784.6,3784.5,5.4706]
[1753906550098,20.72628,3784.6,3784.5,3.2078]
[1753906550289,26.10438,3784.6,3784.5,3.2078]
[1753906551190,28.58088,3784.6,3784.5,3.2078]
[1753906551397,23.58088,3784.6,3784.5,3.2078]
[1753906551895,23.57688,3784.6,3784.5,3.2078]
[1753906552592,0.52848,3784.6,3784.5,4.0884]
[1753906552798,0.52848,3784.6,3784.5,9.3168]
[1753906553090,0.52844,3784.9,3784.8,3.6678]
[1753906553296,19.41444,3784.9,3784.5,3.2078]
[1753906553492,38.062,3785.0,3784.5,3.2078]
[1753906553688,18.885,3784.9,3784.5,3.73628]
[1753906553889,18.885,3784.9,3784.7,0.8806]
[1753906554089,19.41344,3784.9,3784.8,2.7872]
[1753906554300,22.19334,3784.9,3784.8,3.6678]
[1753906554798,22.19334,3784.9,3784.8,0.8806]
[1753906555391,0.52848,3784.6,3784.5,5.4934]
[1753906555600,22.19238,3784.6,3784.5,4.0884]
[1753906557192,38.062,3785.0,3784.5,4.0884]
[1753906557398,19.40944,3784.9,3784.5,3.2078]
[1753906557597,38.59043,3785.0,3784.8,0.8806]
[1753906557894,38.59043,3785.0,3784.7,2.7872]
[1753906557895,38.59043,3785.0,3784.9,6.8756]
[1753906558095,60.25033,3785.0,3784.9,3.6678]
[1753906558295,3.30837,3784.7,3784.6,3.6678]
[1753906558599,21.6599,3784.7,3784.6,3.6678]
[1753906558997,38.062,3785.0,3784.6,3.727]
[1753906559198,38.062,3785.0,3784.9,3.2078]
[1753906559496,56.94,3785.0,3784.9,6.9348]
[1753906559793,38.062,3785.0,3784.9,6.9348]
[1753906559994,56.939,3785.0,3784.9,6.9348]
[1753906560196,18.877,3785.0,3784.9,6.9348]
[1753906562205,21.6953,3785.0,3784.9,0.9248]
[1753906562402,21.6953,3785.0,3784.9,4.1326]
[1753906563804,21.6953,3785.0,3784.6,0.9248]
[1753906564105,21.6953,3785.0,3784.5,4.4793]
[1753906564106,3.1965,3784.6,3784.5,3.2078]
[1753906564408,3.1965,3784.6,3784.5,5.6633]
[1753906564409,20.191,3784.6,3784.5,5.6633]
[1753906564596,0.52846,3784.8,3784.7,2.8022]
[1753906564801,19.39846,3784.8,3784.7,3.727]
[1753906565100,1.84947,3784.7,3784.5,4.1326]
[1753906565399,2.8183,3784.6,3784.5,4.1326]
[1753906565602,2.8183,3784.6,3784.5,3.2078]
[1753906565799,2.8183,3784.6,3784.5,4.1326]
[1753906566302,2.8183,3784.6,3784.5,5.6633]
[1753906567403,18.867,3784.6,3784.5,6.9348]
[1753906567794,0.52845,3784.8,3784.6,2.8022]
[1753906567993,18.866,3784.7,3784.5,3.2078]
[1753906568404,19.39447,3784.7,3784.5,3.2078]
[1753906568604,19.39447,3784.7,3784.6,3.727]
[1753906568805,19.39447,3784.7,3784.6,2.8022]
[1753906568998,22.21277,3784.7,3784.6,3.727]
[1753906569198,22.21277,3784.7,3784.6,0.9248]
[1753906569398,22.59097,3784.7,3784.5,3.2078]
[1753906569598,2.8183,3784.6,3784.5,3.2078]
[1753906569798,2.8183,3784.6,3784.5,4.1326]
[1753906571212,2.8183,3784.6,3784.5,3.2078]
[1753906571509,3.1965,3784.6,3784.5,3.2078]
[1753906572004,2.8183,3784.6,3784.5,5.4041]
[1753906572206,2.8183,3784.6,3784.5,4.1326]
[1753906573111,2.8183,3784.6,3784.5,5.6633]
[1753906573308,19.39447,3784.7,3784.5,6.9348]
[1753906573604,0.52847,3784.7,3784.6,5.2648]
[1753906573807,24.64897,3784.7,3784.6,6.1896]
[1753906573997,24.64897,3784.7,3784.6,4.9181]
[1753906575409,5.6377,3784.6,3784.5,3.2078]
[1753906575605,6.37044959,3784.6,3784.5,3.2078]
[1753906576704,0.52858,3783.9,3783.8,0.97902163]
[1753906576910,21.3186,3783.9,3783.8,6.58602163]
[1753906577916,19.8213,3783.9,3783.8,6.58602163]
[1753906578309,21.3186,3783.9,3783.8,6.58602163]
[1753906578611,18.856,3783.9,3783.8,6.58602163]
[1753906579012,21.3186,3783.9,3783.8,0.39642163]
[1753906579311,21.3186,3783.9,3783.8,1.32122163]
[1753906579714,21.3186,3783.9,3783.8,1.90382163]
[1753906580013,21.3186,3783.9,3783.8,6.58602163]
[1753906580204,21.3186,3783.9,3783.8,3.78382163]
[1753906580809,21.3186,3783.9,3783.8,6.58602163]
[1753906581404,21.3186,3783.9,3783.8,5.05532163]
[1753906581608,21.3186,3783.9,3783.8,6.58602163]
[1753906581806,21.3186,3783.9,3783.8,5.05532163]
[1753906582011,21.3186,3783.9,3783.8,1.32122163]
[1753906583214,21.3186,3783.9,3783.8,3.78382163]
[1753906583415,19.8213,3783.9,3783.8,6.58602163]
[1753906583720,18.856,3783.9,3783.8,6.58602163]
[1753906584511,0.52857,3784.0,3783.9,3.727]
[1753906584716,19.37557,3784.0,3783.9,6.1896]
[1753906584910,20.34087,3784.0,3783.9,6.1896]
[1753906585110,21.83817,3784.0,3783.9,6.1896]
[1753906586220,21.83817,3784.0,3783.8,0.39642163]
[1753906586221,20.34087,3784.0,3783.8,1.63e-06]
[1753906586519,2.9913,3783.0,3782.9,0.9248]
[1753906586723,22.62939,3783.0,3782.6,3.2078]
[1753906586914,1.4973,3782.6,3781.9,2.8022]
[1753906587119,0.52873,3782.9,3782.5,1.5307]
[1753906587415,1.32163,3783.4,3783.1,3.727]
[1753906587416,18.844,3783.4,3783.1,3.727]
[1753906587624,0.52867,3783.2,3783.1,3.2078]
[1753906587829,18.844,3783.4,3781.5,1.32227]
[1753906587830,1.4973,3783.3,3782.5,3.2078]
[1753906588219,2.02605,3782.7,3782.6,0.9248]
[1753906588422,20.86905,3782.7,3782.6,0.9248]
[1753906588628,20.3403,3782.7,3782.6,0.9248]
[1753906589025,1.4449,3782.6,3782.4,0.8375]
[1753906589224,1.4449,3782.6,3782.5,0.8375]
[1753906589424,1.4449,3782.6,3782.5,3.6783]
[1753906589925,18.843,3782.7,3782.5,3.6783]
[1753906590223,1.4449,3782.6,3782.3,2.8408]
[1753906590420,1.4449,3782.5,3782.4,2.8408]
[1753906590726,18.843,3782.7,3782.2,1.3051]
[1753906590930,0.52881,3782.3,3782.2,0.8375]
[1753906591127,0.52886,3781.9,3781.7,3.2078]
[1753906591333,20.2869,3781.8,3781.7,3.2078]
[1753906591524,20.81577,3781.8,3781.7,3.2078]
[1753906591827,20.81577,3781.8,3781.7,4.0453]
[1753906592129,20.2869,3781.8,3781.7,4.0453]
[1753906592327,20.2869,3781.8,3781.7,0.8375]
[1753906592931,18.842,3781.8,3781.7,0.8375]
[1753906593238,18.842,3781.8,3780.8,1.70183618]
[1753906593239,0.52899,3781.0,3780.8,1.70183618]
[1753906593432,18.84,3780.9,3780.8,0.39673618]
[1753906593637,20.2849,3780.9,3780.8,0.39673618]
[1753906594134,20.2849,3780.9,3780.8,1.23423618]
[1753906594337,18.84,3780.9,3780.8,4.07503618]
[1753906594732,20.2849,3780.9,3780.8,4.07503618]
[1753906595036,20.2829,3780.9,3780.8,4.07503618]
[1753906595239,20.2829,3780.9,3780.8,1.23423618]
[1753906595426,20.2829,3780.9,3780.8,4.07503618]
[1753906595637,3.2078,3781.1,3780.8,4.07503618]
[1753906595833,0.52896,3781.2,3781.0,2.3732]
[1753906596031,18.843,3781.1,3781.0,2.1426]
[1753906596237,20.81687,3781.1,3781.0,2.3732]
[1753906596444,18.843,3781.1,3781.0,3.6783]
[1753906597937,0.52896,3781.2,3781.0,3.6783]
[1753906598140,18.841,3781.1,3780.8,0.39673618]
[1753906598339,18.841,3781.0,3780.8,0.39673618]
[1753906598533,19.36999,3781.0,3780.8,0.39673618]
[1753906598732,20.81489,3781.0,3780.8,0.39673618]
[1753906598934,19.36999,3781.0,3780.9,0.8375]
[1753906599740,22.79737594,3781.0,3780.8,0.39673618]
[1753906600137,1.4449,3780.9,3780.8,0.39673618]
[1753906600539,1.4449,3780.9,3780.8,1.23423618]
[1753906601245,18.84,3780.9,3780.8,1.70183618]
[1753906601446,19.368,3780.9,3780.8,1.70183618]
[1753906602040,19.368,3780.9,3780.8,4.07503618]
[1753906602242,29.21004873,3780.9,3780.8,6.18e-06]
[1753906602449,1.97405,3779.8,3779.7,0.8375]
[1753906602743,0.52928,3778.9,3778.8,4.5129]
[1753906602940,19.36928,3778.9,3778.8,6.0486]
[1753906603141,18.84,3778.9,3778.8,6.0486]
[1753906603444,18.84,3778.9,3778.8,6.8861]
[1753906604548,18.839,3779.2,3778.8,8.2078]
[1753906604744,18.839,3779.2,3779.0,2.1426]
[1753906604935,19.36823,3779.2,3779.1,3.6783]
[1753906605138,22.10093,3779.2,3779.1,3.6783]
[1753906605342,22.96403,3779.2,3779.1,0.8375]
[1753906605534,0.54033739,3779.2,3779.1,3.6783]
[1753906605738,19.37833739,3779.2,3779.1,3.6783]
[1753906606343,0.52928,3778.9,3778.8,3.2078]
[1753906606645,0.01110739,3778.9,3778.8,3.2078]
[1753906607034,0.01110739,3778.9,3778.8,4.0453]
[1753906607239,0.01110739,3778.9,3778.8,6.8861]
[1753906608045,0.0190535,3778.9,3778.8,6.8861]
[1753906608837,0.0190535,3778.9,3778.8,5.581]
[1753906609045,2.7517535,3778.9,3778.8,6.8861]
[1753906610247,2.7517535,3778.9,3778.8,3.2078]
[1753906610450,0.0190535,3778.9,3778.5,3.6783]
[1753906610748,0.0190535,3778.9,3778.7,6.8861]
[1753906610749,18.84,3778.8,3778.7,6.8861]
[1753906611053,18.8590535,3778.8,3778.7,6.8861]
[1753906612244,21.5917535,3778.8,3778.7,4.0453]
[1753906612445,20.1468535,3778.8,3778.7,4.0453]
[1753906612750,18.8590535,3778.8,3778.7,6.8861]
[1753906613246,20.1468535,3778.8,3778.7,3.2078]
[1753906613453,22.4548535,3778.8,3778.7,3.2078]
[1753906613650,3.26203,3778.5,3778.4,2.3732]
[1753906613846,3.26203,3778.5,3778.4,0.8375]
[1753906614047,4.1441835,3778.5,3778.4,0.8375]
[1753906614356,0.0190535,3778.5,3778.4,3.6783]
[1753906614549,2.7517535,3778.5,3778.4,3.6783]
[1753906614746,0.0190535,3778.5,3778.4,3.6783]
[1753906614946,18.8590535,3778.5,3778.4,3.6783]
[1753906615347,21.5917535,3778.5,3778.4,3.6783]
[1753906615753,21.5907535,3778.5,3778.4,3.6783]
[1753906616047,18.8580535,3778.5,3778.4,3.6783]
[1753906616752,21.5907535,3778.5,3778.4,3.6783]
[1753906617351,22.32695064,3778.5,3778.4,3.6783]
[1753906617746,22.32695064,3778.5,3778.4,2.1426]
[1753906617954,23.19005064,3778.5,3778.4,0.8375]
[1753906618254,0.52936,3778.3,3778.2,0.8375]
[1753906618444,0.52941,3778.0,3777.8,3.60485123]
[1753906618652,0.52941,3778.0,3777.9,3.6783]
[1753906618847,1.4449,3778.3,3778.1,2.2414]
[1753906619050,19.58065365,3778.2,3778.1,3.6512]
[1753906619258,22.40803977,3778.2,3778.1,0.9091]
[1753906619455,23.31793977,3778.2,3778.1,0.9091]
[1753906620457,3.7037,3778.1,3777.8,1.30615123]
[1753906620655,20.94486707,3778.2,3777.9,3.6512]
[1753906620656,0.74265365,3778.0,3777.9,3.6512]
[1753906620855,0.04075342,3778.2,3778.0,0.52939]
[1753906621052,0.74363785,3778.1,3777.9,3.6512]
[1753906621354,19.36638,3778.2,3777.8,3.60485123]
[1753906621549,0.94539922,3778.8,3777.8,8.60485123]
[1753906621749,1.89874445,3779.7,3779.5,0.52919]
[1753906621957,45.52218271,3780.4,3779.0,0.52926]
[1753906621958,1.89874445,3780.3,3779.7,3.6512]
[1753906622249,1.89874445,3780.3,3780.2,2.3189]
[1753906622450,1.89874445,3780.5,3780.4,0.9091]
[1753906622757,0.52904,3780.6,3780.5,3.6512]
[1753906622957,1.43894,3780.6,3780.5,2.22211025]
[1753906623348,3.7037,3780.5,3780.4,3.2078]
[1753906623954,0.9099,3780.5,3780.4,4.5401]
[1753906624352,22.5357,3780.5,3780.4,3.2078]
[1753906624759,21.159,3780.5,3780.4,4.5401]
[1753906624956,22.5357,3780.5,3780.4,4.5401]
[1753906625158,22.5357,3780.5,3780.4,3.2078]
[1753906625358,1.94621,3780.2,3779.9,1.3323]
[1753906625556,19.7419,3780.1,3780.0,2.7421]
[1753906626358,21.159,3780.1,3780.0,2.7421]
[1753906626556,22.5357,3780.1,3780.0,2.7421]
[1753906628066,4.23286,3779.7,3779.6,3.2078]
[1753906628363,23.06086,3779.7,3779.6,3.2078]
[1753906628866,1.43913,3779.2,3779.1,5.9499]
[1753906629079,20.26513,3779.2,3779.1,5.9499]
[1753906629365,23.05893,3779.2,3779.1,3.2078]
[1753906629561,3.7037,3779.2,3779.1,3.2078]
[1753906629769,20.26513,3779.2,3779.1,5.9499]
[1753906631764,23.05893,3779.2,3778.7,3.2078]
[1753906632070,0.52929,3778.8,3778.7,5.9499]
[1753906632258,21.68129,3778.8,3778.7,5.9499]
[1753906632466,23.05799,3778.8,3778.7,5.9499]
[1753906632766,18.825,3778.8,3778.7,5.9499]
[1753906632966,0.52929,3778.9,3778.8,2.7421]
[1753906633159,0.52929,3778.9,3778.7,3.2078]
[1753906633364,1.43919,3778.9,3778.8,2.7421]
[1753906633564,20.26319,3778.9,3778.8,2.7421]
[1753906633765,21.68029,3778.9,3778.8,2.7421]
[1753906633961,20.26319,3778.9,3778.8,2.7421]
[1753906634772,21.68029,3778.9,3778.8,2.7421]
[1753906635265,20.26319,3778.9,3778.8,2.7421]
[1753906635567,19.7339,3778.9,3778.8,2.7421]
[1753906636868,1.43919,3778.8,3778.7,3.2078]
[1753906637167,0.9099,3778.4,3778.3,5.9499]
[1753906637369,1.32305,3779.4,3778.5,2.7421]
[1753906637573,1.43916,3779.1,3779.0,2.7421]
[1753906637768,23.05396,3779.1,3779.0,2.7421]
[1753906638072,0.9099,3778.6,3778.5,3.2078]
[1753906638373,19.7319,3778.6,3778.5,3.2078]
[1753906638677,19.7319,3778.6,3778.5,5.9499]
[1753906639170,22.5257,3778.6,3778.5,3.2078]
[1753906639573,19.7309,3778.6,3778.5,5.9499]
[1753906639967,0.9099,3778.6,3778.5,5.9499]
[1753906640166,0.52925,3779.1,3779.0,1.3323]
[1753906640372,20.25915,3779.1,3779.0,2.7421]
[1753906640571,23.05295,3779.1,3779.0,2.7421]
[1753906640965,19.7299,3779.1,3779.0,2.7421]
[1753906641272,19.7299,3779.1,3778.2,1.3323]
[1753906641273,2.327,3778.7,3778.2,1.3323]
[1753906641574,0.9099,3778.7,3778.6,5.9499]
[1753906641871,22.5237,3778.7,3778.6,5.9499]
[1753906642074,22.5237,3778.7,3778.6,3.2078]
[1753906644374,0.52938,3778.2,3778.0,3.2078]
[1753906644575,19.7279,3778.1,3778.0,5.9499]
[1753906644773,19.7279,3778.1,3778.0,6.4793]
[1753906645069,18.818,3778.1,3778.0,6.6392]
[1753906645271,0.52935,3778.4,3778.2,2.7421]
[1753906645476,22.14117,3778.3,3778.0,3.2078]
[1753906645664,21.6118,3778.3,3778.0,3.2078]
[1753906645871,3.7037,3778.3,3778.2,2.7421]
[1753906646069,21.144,3778.3,3778.2,2.7421]
[1753906646362,22.5207,3778.3,3778.2,2.7421]
[1753906646564,0.52937,3778.2,3778.0,3.2078]
[1753906646770,3.7037,3778.1,3778.0,3.2078]
[1753906647774,4.2331,3778.0,3777.8,0.39705123]
[1753906648072,22.5217,3777.9,3777.8,0.39705123]
[1753906648275,0.52934,3778.4,3778.0,1.8617]
[1753906648574,18.817,3778.3,3778.2,2.7421]
[1753906648774,20.256,3778.3,3778.2,2.7421]
[1753906648968,22.4835,3778.3,3778.2,2.7421]
[1753906649372,0.9231,3778.9,3778.4,1.4587]
[1753906649577,18.816,3778.8,3778.4,3.2078]
[1753906649784,18.816,3778.8,3778.5,2.8037]
[1753906649785,1.45242,3778.6,3778.5,2.8037]
[1753906649979,0.9231,3778.6,3778.5,2.8037]
[1753906650179,19.7391,3778.6,3778.5,2.8037]
[1753906650376,18.816,3778.6,3778.5,2.9635]
[1753906650781,0.9231,3779.0,3778.9,2.8037]
[1753906650982,0.52923,3779.3,3779.2,1.4587]
[1753906651173,18.816,3779.3,3779.2,3.33293]
[1753906651381,19.7391,3779.3,3779.2,2.8037]
[1753906651579,19.7381,3779.3,3779.2,2.8037]
[1753906652082,0.9231,3779.3,3779.2,2.8037]
[1753906652285,19.7381,3779.3,3779.2,2.8037]
[1753906652589,0.52916,3779.8,3779.6,2.8037]
[1753906652787,0.52914,3779.9,3779.8,2.8037]
[1753906653081,1.45224,3779.9,3779.8,2.8037]
[1753906653283,0.9231,3779.9,3779.8,2.8037]
[1753906653483,19.7361,3779.9,3779.8,2.8037]
[1753906654178,22.4795,3779.9,3779.8,1.345]
[1753906654382,22.4795,3779.9,3779.7,3.2078]
[1753906654383,4.19565,3779.8,3779.7,3.2078]
[1753906654983,18.812,3780.0,3779.9,0.52914]
[1753906655185,0.9231,3779.8,3779.7,3.2078]
[1753906655489,3.6665,3779.8,3779.7,3.2078]
[1753906656385,3.6665,3779.8,3779.7,4.5528]
[1753906656590,3.6665,3779.8,3779.7,3.2078]
[1753906657296,0.52922,3779.3,3779.2,3.2078]
[1753906657498,23.00472,3779.3,3779.2,3.2078]
[1753906657994,22.4755,3779.3,3779.2,3.2078]
[1753906659189,0.52927,3779.0,3778.8,3.2078]
[1753906659395,22.4735,3778.9,3778.8,3.2078]
[1753906659791,0.9231,3778.9,3778.8,3.2078]
[1753906660093,18.807,3779.0,3778.9,2.9635]
[1753906660396,19.7301,3779.0,3778.9,2.8037]
[1753906660594,4.19577,3778.9,3778.8,3.2078]
[1753906660899,0.52933,3778.5,3778.4,1.345]
[1753906661192,23.00183,3778.5,3778.4,1.345]
[1753906661396,3.6665,3778.4,3778.3,3.2078]
[1753906662497,23.00184,3778.4,3778.3,6.0115]
[1753906663087,1.9684,3778.1,3778.0,1.345]
[1753906663292,19.3354,3778.1,3777.9,4.6665]
[1753906663490,2.64625,3779.1,3778.0,2.8037]
[1753906663491,1.32312,3779.1,3778.0,2.8037]
[1753906663694,0.9231,3778.2,3777.9,3.73721]
[1753906663889,18.805,3778.1,3778.0,1.345]
[1753906664088,0.9231,3778.1,3778.0,1.345]
[1753906664390,0.9231,3778.1,3778.0,2.8037]
[1753906664796,3.6665,3778.1,3778.0,2.8037]